fUST/lending_fUST_20250220
["ID","MTS","AMOUNT","RATE_DAILY","PERIOD"]
[353729577,1739999438958,-758.29345031,0.00013699,2]
[353729579,1739999438970,-758.29345031,0.00013699,2]
[353729581,1739999438981,-758.29345031,0.00013699,2]
[353729583,1739999438991,-758.29345031,0.00013699,2]
[353729585,1739999439000,-758.29345031,0.00013699,2]
[353729587,1739999439009,-758.29345031,0.00013699,2]
[353729589,1739999439018,-758.29345031,0.00013699,2]
[353729591,1739999439027,-758.29345031,0.00013699,2]
[353729593,1739999439037,-758.29345031,0.00013699,2]
[353729595,1739999439047,-758.29345031,0.00013699,2]
[353729597,1739999439057,-758.29345031,0.00013699,2]
[353729599,1739999439067,-758.29345031,0.00013699,2]
[353729601,1739999439078,-758.29345031,0.00013699,2]
[353729603,1739999439087,-758.29345031,0.00013699,2]
[353729605,1739999439097,-758.29345031,0.00013699,2]
[353729607,1739999439107,-758.29345031,0.00013699,2]
[353729609,1739999439116,-758.29345031,0.00013699,2]
[353729611,1739999439126,-758.29345031,0.00013699,2]
[353729613,1739999439136,-758.29345031,0.00013699,2]
[353729615,1739999439145,-758.29345031,0.00013699,2]
[353729617,1739999439155,-758.29345031,0.00013699,2]
[353729619,1739999439164,-758.29345031,0.00013699,2]
[353729622,1739999439174,-758.29345031,0.00013699,2]
[353729624,1739999439184,-758.29345031,0.00013699,2]
[353729626,1739999439194,-758.29345031,0.00013699,2]
[353729627,1739999439203,-422.55407264,0.0001378,2]
[353729630,1739999439212,-472.53558529,0.0001378,2]
[353729632,1739999439222,-500.0,0.0001378,2]
[353729633,1739999439231,-381.94097134,0.0001378,2]
[353729635,1739999439240,-500.0,0.0001378,2]
[353729637,1739999439250,-500.0,0.0001378,2]
[353729639,1739999439260,-500.0,0.0001378,2]
[353729641,1739999439270,-500.0,0.0001378,2]
[353729643,1739999439279,-216.60144462,0.0001378,2]
[353729645,1739999439288,-500.0,0.0001378,2]
[353729647,1739999439297,-500.0,0.0001378,2]
[353729649,1739999439308,-500.0,0.0001378,2]
[353729651,1739999439317,-500.0,0.0001378,2]
[353729653,1739999439326,-500.0,0.0001378,2]
[353729655,1739999439335,-500.0,0.0001378,2]
[353729657,1739999439347,-496.69032761,0.0001378,2]
[353729659,1739999439357,-500.0,0.0001378,2]
[353729661,1739999439366,-500.0,0.0001378,2]
[353729663,1739999439375,-500.0,0.0001378,2]
[353729665,1739999439385,-500.0,0.0001378,2]
[353729667,1739999439395,-500.0,0.0001378,2]
[353729669,1739999439404,-500.0,0.0001378,2]
[353729671,1739999439413,-500.0,0.0001378,2]
[353729673,1739999439423,-500.0,0.0001378,2]
[353729675,1739999439433,-500.0,0.0001378,2]
[353729677,1739999439442,-500.0,0.0001378,2]
[353729679,1739999439452,-500.0,0.0001378,2]
[353729681,1739999439461,-566.59,0.0001378,2]
[353729683,1739999439471,-500.0,0.0001378,2]
[353729685,1739999439480,-518.47,0.0001378,2]
[353729687,1739999439490,-492.31292864,0.0001378,2]
[353729689,1739999439500,-500.0,0.0001378,2]
[353729691,1739999439509,-500.0,0.0001378,2]
[353729693,1739999439519,-502.97426491,0.0001378,2]
[353729695,1739999439528,-500.0,0.0001378,2]
[353729697,1739999439537,-500.0,0.0001378,2]
[353729699,1739999439546,-500.0,0.0001378,2]
[353729701,1739999439556,-500.0,0.0001378,2]
[353729702,1739999439565,-500.0,0.0001378,2]
[353729703,1739999439574,-500.0,0.0001378,2]
[353729704,1739999439583,-500.0,0.0001378,2]
[353729705,1739999439592,-500.0,0.0001378,2]
[353729706,1739999439602,-314.56575968,0.0001378,2]
[353729707,1739999439611,-500.0,0.0001378,2]
[353729709,1739999439620,-500.0,0.0001378,2]
[353729711,1739999439631,-442.05072385,0.0001378,2]
[353729713,1739999439641,-500.0,0.0001378,2]
[353729715,1739999439651,-500.0,0.0001378,2]
[353729717,1739999439665,-500.0,0.0001378,2]
[353729719,1739999439674,-500.0,0.0001378,2]
[353729722,1739999439684,-500.0,0.0001378,2]
[353729724,1739999439693,-500.0,0.0001378,2]
[353729726,1739999439703,-500.0,0.0001378,2]
[353729728,1739999439713,-500.0,0.0001378,2]
[353729730,1739999439722,-6868.74,0.0001378,2]
[353729732,1739999439732,-500.0,0.0001378,2]
[353729735,1739999439742,-502.33477907,0.0001378,2]
[353729737,1739999439751,-502.54818159,0.0001378,2]
[353729739,1739999439760,-500.0,0.0001378,2]
[353729741,1739999439769,-500.0,0.0001378,2]
[353729743,1739999439779,-500.0,0.0001378,2]
[353729746,1739999439789,-667.9,0.0001378,2]
[353729749,1739999439800,-2096.92,0.0001378,2]
[353729751,1739999439809,-500.0,0.0001378,2]
[353729753,1739999439819,-500.0,0.0001378,2]
[353729755,1739999439829,-500.0,0.0001378,2]
[353729758,1739999439838,-500.0,0.0001378,2]
[353729762,1739999439848,-500.0,0.0001378,2]
[353729765,1739999439857,-500.0,0.0001378,2]
[353729767,1739999439866,-641.26,0.0001378,2]
[353729769,1739999439876,-830.19,0.0001378,2]
[353729771,1739999439885,-500.0,0.0001378,2]
[353729773,1739999439895,-500.0,0.0001378,2]
[353729775,1739999439904,-680.44,0.0001378,2]
[353729777,1739999439914,-500.0,0.0001378,2]
[353729779,1739999439924,-500.0,0.0001378,2]
[353729781,1739999439934,-500.0,0.0001378,2]
[353729783,1739999439943,-500.0,0.0001378,2]
[353729785,1739999439954,-531.43660287,0.0001378,2]
[353729787,1739999439963,-365.62,0.0001378,2]
[353729789,1739999439974,-500.0,0.0001378,2]
[353729791,1739999439983,-500.0,0.0001378,2]
[353729793,1739999439993,-701.69,0.0001378,2]
[353729795,1739999440003,-300.16,0.0001378,2]
[353729797,1739999440012,-500.0,0.0001378,2]
[353729799,1739999440021,-500.0,0.0001378,2]
[353729801,1739999440031,-500.0,0.0001378,2]
[353729803,1739999440041,-1416.58,0.0001378,2]
[353729805,1739999440051,-500.0,0.0001378,2]
[353729808,1739999440061,-529.08148578,0.0001378,2]
[353729810,1739999440070,-500.0,0.0001378,2]
[353729812,1739999440080,-500.0,0.0001378,2]
[353729814,1739999440090,-500.0,0.0001378,2]
[353729816,1739999440099,-882.26,0.0001378,2]
[353729818,1739999440109,-4013.9,0.0001378,2]
[353729820,1739999440119,-500.0,0.0001378,2]
[353729822,1739999440128,-500.0,0.0001378,2]
[353729824,1739999440137,-1582.3,0.0001378,2]
[353729826,1739999440146,-500.0,0.0001378,2]
[353729828,1739999440156,-776.39,0.0001378,2]
[353729830,1739999440165,-500.0,0.0001378,2]
[353729832,1739999440175,-519.27935031,0.0001378,2]
[353729834,1739999440184,-500.0,0.0001378,2]
[353729836,1739999440194,-500.0,0.0001378,2]
[353729838,1739999440203,-500.0,0.0001378,2]
[353729840,1739999440213,-1639.66,0.0001378,2]
[353729842,1739999440222,-1526.88,0.0001378,2]
[353729845,1739999440231,-500.0,0.0001378,2]
[353729847,1739999440240,-633.8,0.0001378,2]
[353729849,1739999440250,-1005.63,0.0001378,2]
[353729851,1739999440259,-500.0,0.0001378,2]
[353729853,1739999440270,-858.33,0.0001378,2]
[353729855,1739999440281,-500.0,0.0001378,2]
[353729857,1739999440290,-500.0,0.0001378,2]
[353729859,1739999440300,-971.37,0.0001378,2]
[353729861,1739999440311,-596.87,0.0001378,2]
[353729863,1739999440320,-2336.54,0.0001378,2]
[353729865,1739999440330,-500.0,0.0001378,2]
[353729867,1739999440339,-1405.18,0.0001378,2]
[353729869,1739999440351,-500.0,0.0001378,2]
[353729871,1739999440361,-2341.54,0.0001378,2]
[353729873,1739999440371,-500.0,0.0001378,2]
[353729875,1739999440381,-20331.06,0.0001378,2]
[353729877,1739999440390,-909.57,0.0001378,2]
[353729879,1739999440402,-575.66333624,0.0001378,2]
[353729881,1739999440411,-500.0,0.0001378,2]
[353729883,1739999440420,-500.0,0.0001378,2]
[353729885,1739999440429,-500.0,0.0001378,2]
[353729887,1739999440439,-799.61,0.0001378,2]
[353729889,1739999440449,-500.0,0.0001378,2]
[353729892,1739999440458,-722.94,0.0001378,2]
[353729894,1739999440468,-500.0,0.0001378,2]
[353729896,1739999440477,-500.0,0.0001378,2]
[353729898,1739999440486,-500.0,0.0001378,2]
[353729900,1739999440495,-929.21,0.0001378,2]
[353729902,1739999440505,-715.3,0.0001378,2]
[353729904,1739999440515,-500.0,0.0001378,2]
[353729906,1739999440525,-500.0,0.0001378,2]
[353729908,1739999440536,-560.6,0.0001378,2]
[353729910,1739999440545,-1857.67,0.0001378,2]
[353729912,1739999440555,-500.0,0.0001378,2]
[353729914,1739999440566,-500.0,0.0001378,2]
[353729916,1739999440575,-500.0,0.0001378,2]
[353729918,1739999440584,-500.0,0.0001378,2]
[353729920,1739999440595,-500.0,0.0001378,2]
[353729922,1739999440605,-506.81005314,0.0001378,2]
[353729924,1739999440614,-500.0,0.0001378,2]
[353729926,1739999440624,-500.0,0.0001378,2]
[353729928,1739999440634,-769.15,0.0001378,2]
[353729930,1739999440644,-152.0,0.00013838,2]
[353729932,1739999440654,-857.13,0.00013862,2]
[353729934,1739999440664,-857.13,0.00013862,2]
[353729936,1739999440674,-500.0,0.00013863,2]
[353729938,1739999440684,-502.84960807,0.00013863,2]
[353729940,1739999440693,-500.0,0.00013863,2]
[353729943,1739999440703,-500.0,0.00013863,2]
[353729945,1739999440713,-500.0,0.00013863,2]
[353729947,1739999440722,-500.0,0.00013863,2]
[353729949,1739999440732,-500.0,0.00013863,2]
[353729951,1739999440741,-500.0,0.00013863,2]
[353729953,1739999440751,-500.0,0.00013863,2]
[353729955,1739999440760,-500.0,0.00013863,2]
[353729957,1739999440769,-500.0,0.00013863,2]
[353729959,1739999440778,-500.0,0.00013863,2]
[353729961,1739999440788,-500.0,0.00013863,2]
[353729963,1739999440797,-500.0,0.00013863,2]
[353729965,1739999440807,-500.0,0.00013863,2]
[353729967,1739999440816,-500.0,0.00013863,2]
[353729969,1739999440826,-500.0,0.00013863,2]
[353729971,1739999440835,-500.0,0.00013863,2]
[353729973,1739999440844,-500.0,0.00013863,2]
[353729975,1739999440854,-500.0,0.00013863,2]
[353729977,1739999440864,-500.0,0.00013863,2]
[353729979,1739999440873,-500.0,0.00013863,2]
[353729981,1739999440883,-500.0,0.00013863,2]
[353729983,1739999440892,-500.0,0.00013863,2]
[353729985,1739999440903,-500.0,0.00013863,2]
[353729987,1739999440912,-566.59,0.00013863,2]
[353729989,1739999440921,-500.0,0.00013863,2]
[353729992,1739999440931,-500.0,0.00013863,2]
[353729994,1739999440941,-500.0,0.00013863,2]
[353729996,1739999440951,-597.41,0.00013863,2]
[353729998,1739999440961,-500.0,0.00013863,2]
[353730000,1739999440971,-171.88,0.00013863,2]
[353730002,1739999440981,-500.0,0.00013863,2]
[353730004,1739999440991,-500.0,0.00013863,2]
[353730006,1739999441001,-505.13121033,0.00013863,2]
[353730008,1739999441010,-500.0,0.00013863,2]
[353730010,1739999441020,-500.0,0.00013863,2]
[353730012,1739999441029,-500.0,0.00013863,2]
[353730014,1739999441040,-500.0,0.00013863,2]
[353730016,1739999441050,-500.0,0.00013863,2]
[353730018,1739999441059,-6868.74,0.00013863,2]
[353730020,1739999441069,-500.0,0.00013863,2]
[353730022,1739999441079,-500.0,0.00013863,2]
[353730024,1739999441089,-667.9,0.00013863,2]
[353730027,1739999441098,-2096.92,0.00013863,2]
[353730029,1739999441108,-500.0,0.00013863,2]
[353730030,1739999441118,-293.20710241,0.00013863,2]
[353730033,1739999441128,-500.0,0.00013863,2]
[353730035,1739999441138,-641.26,0.00013863,2]
[353730037,1739999441147,-830.19,0.00013863,2]
[353730038,1739999441157,-315.04259289,0.00013863,2]
[353730041,1739999441167,-500.0,0.00013863,2]
[353730043,1739999441176,-680.44,0.00013863,2]
[353730045,1739999441186,-500.0,0.00013863,2]
[353730047,1739999441195,-500.0,0.00013863,2]
[353730049,1739999441205,-500.0,0.00013863,2]
[353730051,1739999441215,-500.0,0.00013863,2]
[353730053,1739999441224,-500.0,0.00013863,2]
[353730055,1739999441234,-500.0,0.00013863,2]
[353730057,1739999441243,-701.69,0.00013863,2]
[353730059,1739999441253,-500.0,0.00013863,2]
[353730061,1739999441266,-500.0,0.00013863,2]
[353730063,1739999441275,-500.0,0.00013863,2]
[353730065,1739999441285,-1416.58,0.00013863,2]
[353730067,1739999441295,-500.0,0.00013863,2]
[353730069,1739999441304,-500.0,0.00013863,2]
[353730071,1739999441314,-500.0,0.00013863,2]
[353730073,1739999441324,-882.26,0.00013863,2]
[353730075,1739999441333,-4013.9,0.00013863,2]
[353730077,1739999441344,-500.0,0.00013863,2]
[353730079,1739999441355,-500.0,0.00013863,2]
[353730081,1739999441364,-1582.3,0.00013863,2]
[353730084,1739999441374,-500.0,0.00013863,2]
[353730085,1739999441384,-776.39,0.00013863,2]
[353730088,1739999441393,-500.0,0.00013863,2]
[353730090,1739999441403,-500.0,0.00013863,2]
[353730092,1739999441412,-500.0,0.00013863,2]
[353730094,1739999441421,-1639.66,0.00013863,2]
[353730096,1739999441431,-1526.88,0.00013863,2]
[353730098,1739999441441,-500.0,0.00013863,2]
[353730100,1739999441450,-1005.63,0.00013863,2]
[353730102,1739999441460,-500.0,0.00013863,2]
[353730104,1739999441469,-858.33,0.00013863,2]
[353730106,1739999441479,-500.0,0.00013863,2]
[353730108,1739999441489,-500.0,0.00013863,2]
[353730110,1739999441499,-971.37,0.00013863,2]
[353730112,1739999441508,-596.87,0.00013863,2]
[353730114,1739999441518,-2336.54,0.00013863,2]
[353730116,1739999441527,-500.0,0.00013863,2]
[353730118,1739999441537,-1405.18,0.00013863,2]
[353730120,1739999441547,-500.0,0.00013863,2]
[353730122,1739999441557,-2341.54,0.00013863,2]
[353730124,1739999441567,-500.0,0.00013863,2]
[353730127,1739999441578,-20331.06,0.00013863,2]
[353730129,1739999441587,-909.57,0.00013863,2]
[353730131,1739999441597,-376.79,0.00013863,2]
[353730133,1739999441606,-500.0,0.00013863,2]
[353730135,1739999441617,-799.61,0.00013863,2]
[353730137,1739999441627,-500.0,0.00013863,2]
[353730139,1739999441638,-722.94,0.00013863,2]
[353730141,1739999441650,-500.0,0.00013863,2]
[353730143,1739999441660,-500.0,0.00013863,2]
[353730145,1739999441670,-500.0,0.00013863,2]
[353730147,1739999441680,-929.21,0.00013863,2]
[353730149,1739999441689,-715.3,0.00013863,2]
[353730151,1739999441699,-626.98373473,0.00013863,2]
[353730153,1739999441708,-560.6,0.00013863,2]
[353730155,1739999441718,-1857.67,0.00013863,2]
[353730157,1739999441728,-626.47486817,0.00013863,2]
[353730159,1739999441738,-500.0,0.00013863,2]
[353730162,1739999441748,-500.0,0.00013863,2]
[353730164,1739999441758,-500.0,0.00013863,2]
[353730166,1739999441768,-500.0,0.00013863,2]
[353730168,1739999441778,-420.0,0.00013901,2]
[353730170,1739999441788,-504.4854626,0.0001393,2]
[353730172,1739999441797,-857.13,0.00013944,2]
[353730174,1739999441807,-500.0,0.00013945,2]
[353730176,1739999441817,-500.0,0.00013945,2]
[353730178,1739999441827,-500.0,0.00013945,2]
[353730180,1739999441836,-500.0,0.00013945,2]
[353730182,1739999441847,-500.0,0.00013945,2]
[353730184,1739999441856,-252.65407185,0.00013945,2]
[353730186,1739999441866,-500.0,0.00013945,2]
[353730188,1739999441876,-500.0,0.00013945,2]
[353730190,1739999441885,-500.0,0.00013945,2]
[353730192,1739999441895,-500.0,0.00013945,2]
[353730195,1739999441907,-500.0,0.00013945,2]
[353730197,1739999441917,-500.0,0.00013945,2]
[353730199,1739999441927,-500.0,0.00013945,2]
[353730201,1739999441936,-502.75966118,0.00013945,2]
[353730216,1739999442056,-500.0,0.00013945,2]
[353730218,1739999442082,-500.0,0.00013945,2]
[353730220,1739999442091,-500.0,0.00013945,2]
[353730222,1739999442101,-500.0,0.00013945,2]
[353730224,1739999442110,-500.0,0.00013945,2]
[353730226,1739999442120,-500.0,0.00013945,2]
[353730228,1739999442129,-566.59,0.00013945,2]
[353730230,1739999442138,-375.94,0.00013945,2]
[353730232,1739999442149,-500.0,0.00013945,2]
[353730234,1739999442158,-500.0,0.00013945,2]
[353730236,1739999442167,-500.0,0.00013945,2]
[353730238,1739999442177,-500.0,0.00013945,2]
[353730240,1739999442186,-500.0,0.00013945,2]
[353730242,1739999442196,-500.0,0.00013945,2]
[353730244,1739999442205,-500.0,0.00013945,2]
[353730246,1739999442215,-500.0,0.00013945,2]
[353730248,1739999442225,-6868.74,0.00013945,2]
[353730250,1739999442235,-500.0,0.00013945,2]
[353730252,1739999442244,-667.9,0.00013945,2]
[353730254,1739999442254,-2096.92,0.00013945,2]
[353730256,1739999442264,-500.0,0.00013945,2]
[353730258,1739999442277,-641.26,0.00013945,2]
[353730260,1739999442286,-830.19,0.00013945,2]
[353730262,1739999442296,-500.0,0.00013945,2]
[353730264,1739999442307,-680.44,0.00013945,2]
[353730266,1739999442317,-500.0,0.00013945,2]
[353730268,1739999442327,-500.0,0.00013945,2]
[353730270,1739999442336,-500.0,0.00013945,2]
[353730272,1739999442348,-500.0,0.00013945,2]
[353730274,1739999442358,-500.0,0.00013945,2]
[353730276,1739999442368,-500.0,0.00013945,2]
[353730278,1739999442377,-701.69,0.00013945,2]
[353730280,1739999442386,-500.0,0.00013945,2]
[353730282,1739999442396,-303.93,0.00013945,2]
[353730284,1739999442406,-500.0,0.00013945,2]
[353730286,1739999442416,-1416.58,0.00013945,2]
[353730288,1739999442425,-500.0,0.00013945,2]
[353730290,1739999442434,-500.0,0.00013945,2]
[353730292,1739999442444,-500.0,0.00013945,2]
[353730294,1739999442453,-882.26,0.00013945,2]
[353730296,1739999442463,-4013.9,0.00013945,2]
[353730298,1739999442472,-180.50115366,0.00013945,2]
[353730299,1739999442481,-500.0,0.00013945,2]
[353730302,1739999442491,-1582.3,0.00013945,2]
[353730303,1739999442501,-280.68615391,0.00013945,2]
[353730305,1739999442511,-776.39,0.00013945,2]
[353730307,1739999442520,-500.0,0.00013945,2]
[353730309,1739999442529,-500.0,0.00013945,2]
[353730311,1739999442539,-500.0,0.00013945,2]
[353730313,1739999442549,-1639.66,0.00013945,2]
[353730315,1739999442558,-1526.88,0.00013945,2]
[353730318,1739999442567,-500.0,0.00013945,2]
[353730319,1739999442577,-1005.63,0.00013945,2]
[353730321,1739999442587,-500.0,0.00013945,2]
[353730323,1739999442597,-858.33,0.00013945,2]
[353730326,1739999442606,-500.0,0.00013945,2]
[353730328,1739999442616,-500.0,0.00013945,2]
[353730330,1739999442625,-971.37,0.00013945,2]
[353730332,1739999442635,-596.87,0.00013945,2]
[353730335,1739999442644,-2336.54,0.00013945,2]
[353730338,1739999442656,-354.41575571,0.00013945,2]
[353730340,1739999442666,-1405.18,0.00013945,2]
[353730342,1739999442675,-500.0,0.00013945,2]
[353730344,1739999442685,-2341.54,0.00013945,2]
[353730346,1739999442695,-500.0,0.00013945,2]
[353730350,1739999442705,-20331.06,0.00013945,2]
[353730351,1739999442714,-909.57,0.00013945,2]
[353730353,1739999442724,-500.0,0.00013945,2]
[353730355,1739999442733,-799.61,0.00013945,2]
[353730357,1739999442743,-500.0,0.00013945,2]
[353730359,1739999442752,-722.94,0.00013945,2]
[353730361,1739999442761,-500.0,0.00013945,2]
[353730363,1739999442771,-500.0,0.00013945,2]
[353730365,1739999442780,-929.21,0.00013945,2]
[353730367,1739999442789,-715.3,0.00013945,2]
[353730369,1739999442799,-560.6,0.00013945,2]
[353730371,1739999442809,-1857.67,0.00013945,2]
[353730373,1739999442818,-432.67,0.00013945,2]
[353730375,1739999442827,-500.0,0.00013945,2]
[353730377,1739999442836,-500.0,0.00013945,2]
[353730379,1739999442845,-857.13,0.00014026,2]
[353730381,1739999442854,-857.13,0.00014026,2]
[353730383,1739999442863,-500.0,0.00014027,2]
[353730385,1739999442872,-500.0,0.00014027,2]
[353730387,1739999442882,-500.0,0.00014027,2]
[353730389,1739999442891,-500.0,0.00014027,2]
[353730391,1739999442903,-500.0,0.00014027,2]
[353730393,1739999442912,-500.0,0.00014027,2]
[353730395,1739999442922,-500.0,0.00014027,2]
[353730397,1739999442932,-500.0,0.00014027,2]
[353730399,1739999442941,-500.0,0.00014027,2]
[353730401,1739999442951,-500.0,0.00014027,2]
[353730403,1739999442960,-500.0,0.00014027,2]
[353730405,1739999442970,-500.0,0.00014027,2]
[353730407,1739999442980,-330.27635412,0.00014027,2]
[353730409,1739999442989,-500.0,0.00014027,2]
[353730411,1739999442998,-612.63821157,0.00014027,2]
[353730413,1739999443008,-500.0,0.00014027,2]
[353730415,1739999443017,-566.59,0.00014027,2]
[353730417,1739999443026,-500.0,0.00014027,2]
[353730419,1739999443036,-500.0,0.00014027,2]
[353730421,1739999443045,-500.0,0.00014027,2]
[353730423,1739999443056,-500.0,0.00014027,2]
[353730425,1739999443065,-500.0,0.00014027,2]
[353730426,1739999443075,-500.0,0.00014027,2]
[353730428,1739999443085,-500.0,0.00014027,2]
[353730430,1739999443094,-6868.74,0.00014027,2]
[353730432,1739999443104,-500.0,0.00014027,2]
[353730434,1739999443113,-667.9,0.00014027,2]
[353730436,1739999443122,-2096.92,0.00014027,2]
[353730438,1739999443131,-500.0,0.00014027,2]
[353730440,1739999443141,-641.26,0.00014027,2]
[353730442,1739999443151,-830.19,0.00014027,2]
[353730444,1739999443160,-500.0,0.00014027,2]
[353730446,1739999443170,-680.44,0.00014027,2]
[353730448,1739999443179,-518.04248166,0.00014027,2]
[353730450,1739999443189,-500.0,0.00014027,2]
[353730452,1739999443199,-500.0,0.00014027,2]
[353730454,1739999443208,-500.0,0.00014027,2]
[353730456,1739999443218,-500.0,0.00014027,2]
[353730458,1739999443228,-500.0,0.00014027,2]
[353730460,1739999443237,-701.69,0.00014027,2]
[353730462,1739999443246,-500.0,0.00014027,2]
[353730464,1739999443256,-500.0,0.00014027,2]
[353730466,1739999443266,-1416.58,0.00014027,2]
[353730468,1739999443279,-500.0,0.00014027,2]
[353730470,1739999443288,-500.0,0.00014027,2]
[353730472,1739999443298,-500.0,0.00014027,2]
[353730474,1739999443308,-882.26,0.00014027,2]
[353730476,1739999443319,-4013.9,0.00014027,2]
[353730478,1739999443328,-500.0,0.00014027,2]
[353730480,1739999443338,-1582.3,0.00014027,2]
[353730481,1739999443348,-776.39,0.00014027,2]
[353730483,1739999443358,-500.0,0.00014027,2]
[353730485,1739999443368,-500.0,0.00014027,2]
[353730487,1739999443377,-500.0,0.00014027,2]
[353730489,1739999443387,-1639.66,0.00014027,2]
[353730492,1739999443398,-1526.88,0.00014027,2]
[353730493,1739999443407,-500.0,0.00014027,2]
[353730496,1739999443417,-1005.63,0.00014027,2]
[353730497,1739999443426,-500.0,0.00014027,2]
[353730499,1739999443435,-858.33,0.00014027,2]
[353730501,1739999443445,-500.0,0.00014027,2]
[353730503,1739999443455,-500.0,0.00014027,2]
[353730505,1739999443465,-971.37,0.00014027,2]
[353730507,1739999443474,-596.87,0.00014027,2]
[353730509,1739999443483,-2336.54,0.00014027,2]
[353730511,1739999443493,-1405.18,0.00014027,2]
[353730513,1739999443503,-500.0,0.00014027,2]
[353730515,1739999443513,-2341.54,0.00014027,2]
[353730517,1739999443522,-500.0,0.00014027,2]
[353730519,1739999443532,-20331.06,0.00014027,2]
[353730521,1739999443543,-909.57,0.00014027,2]
[353730523,1739999443553,-500.0,0.00014027,2]
[353730525,1739999443563,-799.61,0.00014027,2]
[353730527,1739999443572,-569.71462104,0.00014027,2]
[353730529,1739999443583,-722.94,0.00014027,2]
[353730531,1739999443592,-500.0,0.00014027,2]
[353730533,1739999443602,-929.21,0.00014027,2]
[353730535,1739999443612,-715.3,0.00014027,2]
[353730537,1739999443623,-560.6,0.00014027,2]
[353730540,1739999443634,-1857.67,0.00014027,2]
[353730542,1739999443645,-500.0,0.00014027,2]
[353730544,1739999443655,-857.13,0.00014108,2]
[353730545,1739999443665,-500.0,0.00014109,2]
[353730547,1739999443674,-500.0,0.00014109,2]
[353730549,1739999443684,-500.0,0.00014109,2]
[353730551,1739999443694,-500.0,0.00014109,2]
[353730553,1739999443703,-500.0,0.00014109,2]
[353730555,1739999443712,-500.0,0.00014109,2]
[353730557,1739999443722,-500.0,0.00014109,2]
[353730559,1739999443731,-500.0,0.00014109,2]
[353730561,1739999443741,-500.0,0.00014109,2]
[353730563,1739999443752,-500.0,0.00014109,2]
[353730565,1739999443761,-500.0,0.00014109,2]
[353730567,1739999443771,-500.0,0.00014109,2]
[353730569,1739999443780,-500.0,0.00014109,2]
[353730571,1739999443789,-500.0,0.00014109,2]
[353730573,1739999443799,-566.59,0.00014109,2]
[353730575,1739999443808,-500.0,0.00014109,2]
[353730577,1739999443817,-500.0,0.00014109,2]
[353730579,1739999443827,-500.0,0.00014109,2]
[353730581,1739999443837,-500.0,0.00014109,2]
[353730583,1739999443846,-500.0,0.00014109,2]
[353730585,1739999443856,-500.0,0.00014109,2]
[353730587,1739999443865,-500.0,0.00014109,2]
[353730589,1739999443874,-6868.74,0.00014109,2]
[353730591,1739999443884,-500.0,0.00014109,2]
[353730593,1739999443894,-667.9,0.00014109,2]
[353730595,1739999443904,-2096.92,0.00014109,2]
[353730597,1739999443915,-500.0,0.00014109,2]
[353730599,1739999443925,-641.26,0.00014109,2]
[353730601,1739999443934,-830.19,0.00014109,2]